[Event "44th Chess Olympiad Women 2022"]
[Site "Chennai"]
[Date "2022.08.06"]
[Round "8.50"]
[White "Khalil, Manar"]
[Black "Maradiaga, Cesia"]
[Result "1-0"]
[WhiteElo "1831"]
[BlackElo "1533"]
[Annotator "NA RC"]
[PlyCount "113"]
[EventDate "2022.??.??"]
[TimeControl "60"]

1. e4 {[%emt 0:00:03]} e5 {[%emt 0:00:08]} 2. Nf3 {[%emt 0:00:11]} Nc6 {
[%emt 0:00:09]} 3. d4 {[%emt 0:00:15]} exd4 {[%emt 0:00:24]} 4. Bc4 {[%emt 0:
00:00]} Bb4+ {[%emt 0:00:26]} 5. c3 {[%emt 0:00:51]} dxc3 {[%emt 0:00:09]} 6.
bxc3 {[%emt 0:00:39]} Ba5 {[%emt 0:00:31]} 7. Bg5 {[%emt 0:07:20]} Nf6 {
[%emt 0:07:44]} 8. e5 {[%emt 0:02:58]} h6 {[%emt 0:12:20]} 9. exf6 {[%emt 0:00:
00]} hxg5 {[%emt 0:06:37]} 10. Qe2+ {[%emt 0:06:25]} Kf8 {[%emt 0:01:11]} 11.
fxg7+ {[%emt 0:02:52]} Kxg7 {[%emt 0:03:30]} 12. O-O {[%emt 0:00:47]} g4 {
[%emt 0:12:10]} 13. Ne5 {[%emt 0:01:54]} Qh4 {[%emt 0:04:23]} 14. Qxg4+ {
[%emt 0:01:12]} Qxg4 {[%emt 0:01:09]} 15. Nxg4 {[%emt 0:00:05]} d6 {[%emt 0:00:
00]} 16. Ne3 {[%emt 0:00:56]} Be6 {[%emt 0:07:16]} 17. Bb3 {[%emt 0:03:07]}
Rag8 {[%emt 0:04:54]} 18. Rc1 {[%emt 0:04:51]} Ne5 {[%emt 0:01:05]} 19. Nd2 {
[%emt 0:01:52]} Nd3 {[%emt 0:01:53]} 20. Rc2 {[%emt 0:00:30]} Kf8 {[%emt 0:00:
00]} 21. Ndc4 {[%emt 0:04:32]} Rh5 {[%emt 0:07:26]} 22. Rd1 {[%emt 0:02:51]}
Nf4 {[%emt 0:01:07]} 23. Nxa5 {[%emt 0:05:43]} Rxa5 {[%emt 0:00:31]} 24. g3 {
[%emt 0:02:32]} Bf5 {[%emt 0:05:08]} 25. Nxf5 {[%emt 0:01:16]} Rxf5 {[%emt 0:
00:00]} 26. Kf1 {[%emt 0:01:03]} Nh3 {[%emt 0:01:39]} 27. Bd5 {[%emt 0:03:01]}
Ng5 {[%emt 0:00:53]} 28. Bxb7 {[%emt 0:01:29]} Rh8 {[%emt 0:00:30]} 29. h4 {
[%emt 0:00:37]} Ne6 {[%emt 0:02:24]} 30. Rd5 {[%emt 0:02:21]} Rf6 {[%emt 0:00:
00]} 31. Ra5 {[%emt 0:01:09]} Nc5 {[%emt 0:00:24]} 32. Rxa7 {[%emt 0:00:31]}
Rh5 {[%emt 0:04:09]} 33. Bg2 {[%emt 0:02:24]} Re5 {[%emt 0:04:50]} 34. Re2 {
[%emt 0:02:36]} Ref5 {[%emt 0:00:00]} 35. Rxc7 {[%emt 0:02:18]} Nd3 {[%emt 0:
00:00]} 36. f3 {[%emt 0:05:16]} Ne5 {[%emt 0:00:00]} 37. f4 {[%emt 0:00:55]}
Ng4 {[%emt 0:00:21]} 38. Bh3 {[%emt 0:01:24]} Rg6 {[%emt 0:00:26]} 39. Bxg4 {
[%emt 0:00:19]} Rxg4 {[%emt 0:00:10]} 40. Kf2 {[%emt 0:00:13]} Rg6 {[%emt 0:00:
00]} 41. a4 {[%emt 0:31:41]} Ra5 {[%emt 0:30:41]} 42. Ree7 {[%emt 0:01:10]} Rf6
{[%emt 0:00:34]} 43. Ra7 {[%emt 0:00:16]} Rc5 {[%emt 0:00:26]} 44. Rec7 {
[%emt 0:00:19]} Rd5 {[%emt 0:01:03]} 45. a5 {[%emt 0:01:03]} Rd2+ {[%emt 0:00:
00]} 46. Ke3 {[%emt 0:00:15]} Ra2 {[%emt 0:00:21]} 47. a6 {[%emt 0:01:07]} Kg7
{[%emt 0:00:07]} 48. Ra8 {[%emt 0:01:17]} Re6+ {[%emt 0:03:08]} 49. Kf3 {
[%emt 0:00:15]} Ra1 {[%emt 0:00:13]} 50. a7 {[%emt 0:01:35]} d5 {[%emt 0:02:21]
} 51. Rd8 {[%emt 0:01:00]} Rea6 {[%emt 0:00:38]} 52. Rxd5 {[%emt 0:00:35]} Rxa7
{[%emt 0:01:22]} 53. Rdd7 {[%emt 0:00:57]} Rxc7 {[%emt 0:01:10]} 54. Rxc7 {
[%emt 0:00:01]} Ra5 {[%emt 0:00:19]} 55. g4 {[%emt 0:00:52]} Kg6 {[%emt 0:00:
00]} 56. h5+ {[%emt 0:00:19]} Kg7 {[%emt 0:01:00]} 57. g5 {[%emt 0:00:27]} 1-0

[Event "44th Chess Olympiad Women 2022"]
[Site "Chennai"]
[Date "2022.08.06"]
[Round "8.50"]
[White "Mejia, Camila"]
[Black "Mahmoud, Roula"]
[Result "0-1"]
[WhiteElo "1330"]
[BlackElo "1765"]
[Annotator "NA RC"]
[PlyCount "104"]
[EventDate "2022.??.??"]
[TimeControl "60"]

1. e4 {[%emt 0:00:55]} c5 {[%emt 0:00:06]} 2. Nf3 {[%emt 0:00:27]} e6 {[%emt 0:
00:00]} 3. Bc4 {[%emt 0:00:59]} a6 {[%emt 0:00:09]} 4. a4 {[%emt 0:01:34]} Nc6
{[%emt 0:00:08]} 5. Nc3 {[%emt 0:01:14]} Nf6 {[%emt 0:01:33]} 6. O-O {[%emt 0:
00:00]} d5 {[%emt 0:00:34]} 7. exd5 {[%emt 0:02:29]} exd5 {[%emt 0:00:06]} 8.
Ba2 {[%emt 0:02:22]} Be7 {[%emt 0:01:31]} 9. d4 {[%emt 0:03:29]} O-O {[%emt 0:
00:00]} 10. dxc5 {[%emt 0:01:25]} d4 {[%emt 0:00:19]} 11. Ne2 {[%emt 0:02:06]}
Bxc5 {[%emt 0:00:51]} 12. h3 {[%emt 0:02:25]} h6 {[%emt 0:00:34]} 13. b3 {
[%emt 0:00:48]} Qd6 {[%emt 0:18:12]} 14. Bb2 {[%emt 0:10:43]} Rd8 {[%emt 0:00:
00]} 15. Nexd4 {[%emt 0:03:30]} Nxd4 {[%emt 0:01:08]} 16. Nxd4 {[%emt 0:03:54]}
Bxd4 {[%emt 0:00:20]} 17. Bxd4 {[%emt 0:03:24]} Qxd4 {[%emt 0:00:09]} 18. Qxd4
{[%emt 0:00:48]} Rxd4 {[%emt 0:00:15]} 19. c3 {[%emt 0:00:25]} Rd3 {[%emt 0:00:
00]} 20. c4 {[%emt 0:05:45]} Be6 {[%emt 0:01:00]} 21. Rfd1 {[%emt 0:01:23]}
Rad8 {[%emt 0:00:08]} 22. Rxd3 {[%emt 0:00:29]} Rxd3 {[%emt 0:00:03]} 23. f3 {
[%emt 0:01:07]} Nd7 {[%emt 0:03:06]} 24. Kf1 {[%emt 0:00:52]} Rd2 {[%emt 0:00:
00]} 25. f4 {[%emt 0:07:27]} Nc5 {[%emt 0:01:50]} 26. g4 {[%emt 0:01:23]} Bd7 {
[%emt 0:04:18]} 27. f5 {[%emt 0:02:03]} Bc6 {[%emt 0:00:16]} 28. h4 {[%emt 0:
00:00]} Rh2 {[%emt 0:00:12]} 29. Kg1 {[%emt 0:00:59]} Rh1+ {[%emt 0:00:09]} 30.
Kf2 {[%emt 0:00:15]} Rxa1 {[%emt 0:00:00]} 31. b4 {[%emt 0:00:00]} Rxa2+ {
[%emt 0:00:00]} 32. Ke3 {[%emt 0:00:00]} Nxa4 {[%emt 0:00:04]} 33. b5 {[%emt 0:
00:00]} axb5 {[%emt 0:00:06]} 34. cxb5 {[%emt 0:00:09]} Bxb5 {[%emt 0:00:04]}
35. g5 {[%emt 0:00:15]} Nc5 {[%emt 0:00:35]} 36. f6 {[%emt 0:01:18]} Rh2 {
[%emt 0:00:18]} 37. fxg7 {[%emt 0:00:48]} Rxh4 {[%emt 0:00:17]} 38. gxh6 {
[%emt 0:00:15]} Rxh6 {[%emt 0:00:09]} 39. Kd4 {[%emt 0:00:16]} b6 {[%emt 0:00:
00]} 40. Kd5 {[%emt 0:00:19]} f5 {[%emt 0:00:23]} 41. Ke5 {[%emt 0:30:25]} Kxg7
{[%emt 0:30:09]} 42. Kxf5 {[%emt 0:00:18]} Re6 {[%emt 0:00:06]} 43. Kf4 {
[%emt 0:00:13]} Kf6 {[%emt 0:00:07]} 44. Kg4 {[%emt 0:00:17]} Re4+ {[%emt 0:00:
00]} 45. Kf3 {[%emt 0:00:16]} Kg5 {[%emt 0:00:09]} 46. Kg3 {[%emt 0:00:10]}
Re3+ {[%emt 0:00:55]} 47. Kf2 {[%emt 0:00:09]} Kf4 {[%emt 0:00:09]} 48. Kg2 {
[%emt 0:00:06]} Ne4 {[%emt 0:00:39]} 49. Kh2 {[%emt 0:00:18]} Rg3 {[%emt 0:00:
00]} 50. Kh1 {[%emt 0:00:19]} Nf2+ {[%emt 0:00:04]} 51. Kh2 {[%emt 0:00:05]}
Ng4+ {[%emt 0:00:04]} 52. Kh1 {[%emt 0:00:09]} Bc6# {[%emt 0:00:01]} 0-1

[Event "44th Chess Olympiad Women 2022"]
[Site "Chennai"]
[Date "2022.08.06"]
[Round "8.51"]
[White "Ben Said, Safa"]
[Black "Mwango, Lorita"]
[Result "1-0"]
[WhiteElo "1564"]
[BlackElo "1920"]
[Annotator "NA RC"]
[PlyCount "69"]
[EventDate "2022.??.??"]
[TimeControl "60"]

1. e4 {[%emt 0:00:03]} c6 {[%emt 0:00:21]} 2. d4 {[%emt 0:00:22]} d5 {[%emt 0:
00:00]} 3. Nd2 {[%emt 0:00:12]} g6 {[%emt 0:00:52]} 4. Ngf3 {[%emt 0:01:53]}
Bg7 {[%emt 0:00:20]} 5. c3 {[%emt 0:00:30]} e6 {[%emt 0:00:32]} 6. Bd3 {
[%emt 0:02:07]} Ne7 {[%emt 0:00:25]} 7. O-O {[%emt 0:00:46]} O-O {[%emt 0:00:
00]} 8. Re1 {[%emt 0:00:53]} b6 {[%emt 0:00:32]} 9. Nf1 {[%emt 0:00:44]} Ba6 {
[%emt 0:00:28]} 10. Bc2 {[%emt 0:02:14]} Bxf1 {[%emt 0:00:15]} 11. Kxf1 {
[%emt 0:00:13]} Qc7 {[%emt 0:00:07]} 12. Bg5 {[%emt 0:02:18]} Re8 {[%emt 0:00:
00]} 13. Qd2 {[%emt 0:01:24]} Nd7 {[%emt 0:01:36]} 14. Bh6 {[%emt 0:04:04]} Kh8
{[%emt 0:01:53]} 15. e5 {[%emt 0:05:42]} Ng8 {[%emt 0:00:39]} 16. Bxg7+ {
[%emt 0:01:28]} Kxg7 {[%emt 0:00:07]} 17. Qg5 {[%emt 0:01:37]} Qd8 {[%emt 0:00:
00]} 18. Qg3 {[%emt 0:02:30]} c5 {[%emt 0:00:00]} 19. h4 {[%emt 0:01:26]} Rc8 {
[%emt 0:00:00]} 20. h5 {[%emt 0:02:00]} cxd4 {[%emt 0:00:00]} 21. hxg6 {
[%emt 0:03:59]} hxg6 {[%emt 0:01:12]} 22. Nxd4 {[%emt 0:07:03]} a6 {[%emt 0:00:
00]} 23. Re3 {[%emt 0:06:47]} Nf8 {[%emt 0:06:06]} 24. Qf4 {[%emt 0:09:08]} f5
{[%emt 0:13:29]} 25. exf6+ {[%emt 0:09:13]} Qxf6 {[%emt 0:00:12]} 26. Qg3 {
[%emt 0:00:20]} Nh7 {[%emt 0:12:23]} 27. Rae1 {[%emt 0:05:25]} Ng5 {[%emt 0:00:
00]} 28. Re5 {[%emt 0:02:06]} Ne4 {[%emt 0:02:09]} 29. Bxe4 {[%emt 0:00:41]}
dxe4 {[%emt 0:00:08]} 30. R1xe4 {[%emt 0:00:19]} Qf7 {[%emt 0:04:33]} 31. Nxe6+
{[%emt 0:02:02]} Rxe6 {[%emt 0:00:50]} 32. Rxe6 {[%emt 0:00:05]} Nf6 {[%emt 0:
00:00]} 33. Re7 {[%emt 0:02:14]} Nxe4 {[%emt 0:00:12]} 34. Rxf7+ {[%emt 0:00:
00]} Kxf7 {[%emt 0:00:14]} 35. Qf3+ {[%emt 0:00:07]} 1-0

[Event "44th Chess Olympiad Women 2022"]
[Site "Chennai"]
[Date "2022.08.06"]
[Round "8.51"]
[White "Bwalya Mulwale, Lubuuto"]
[Black "Laaribi, Mariem"]
[Result "1-0"]
[WhiteElo "1751"]
[BlackElo "1278"]
[Annotator "NA RC"]
[PlyCount "55"]
[EventDate "2022.??.??"]
[TimeControl "60"]

1. c4 {[%emt 0:00:03]} f5 {[%emt 0:00:21]} 2. Nc3 {[%emt 0:00:22]} e6 {[%emt 0:
00:00]} 3. d4 {[%emt 0:01:16]} Nf6 {[%emt 0:02:05]} 4. Bg5 {[%emt 0:00:41]} Bb4
{[%emt 0:00:26]} 5. e3 {[%emt 0:02:06]} b6 {[%emt 0:02:07]} 6. Be2 {[%emt 0:00:
00]} O-O {[%emt 0:01:28]} 7. Bf3 {[%emt 0:01:23]} Bxc3+ {[%emt 0:01:23]} 8.
bxc3 {[%emt 0:00:26]} d5 {[%emt 0:04:00]} 9. cxd5 {[%emt 0:01:52]} exd5 {
[%emt 0:00:59]} 10. c4 {[%emt 0:03:06]} Bb7 {[%emt 0:06:19]} 11. Qc2 {[%emt 0:
00:00]} Qd7 {[%emt 0:10:25]} 12. Ne2 {[%emt 0:06:25]} Ne4 {[%emt 0:15:18]} 13.
Bf4 {[%emt 0:00:34]} c5 {[%emt 0:25:37]} 14. Bxe4 {[%emt 0:07:48]} dxe4 {
[%emt 0:03:56]} 15. Rd1 {[%emt 0:01:37]} Qc6 {[%emt 0:11:56]} 16. O-O {[%emt 0:
00:00]} Nd7 {[%emt 0:06:53]} 17. d5 {[%emt 0:10:22]} Qg6 {[%emt 0:00:59]} 18.
f3 {[%emt 0:01:57]} Rfe8 {[%emt 0:01:29]} 19. Nc3 {[%emt 0:01:07]} exf3 {
[%emt 0:00:27]} 20. Rxf3 {[%emt 0:00:13]} Rf8 {[%emt 0:01:07]} 21. Nb5 {
[%emt 0:02:53]} Bc8 {[%emt 0:01:13]} 22. Nc7 {[%emt 0:00:50]} Rb8 {[%emt 0:00:
00]} 23. Ne6 {[%emt 0:01:23]} Rb7 {[%emt 0:00:34]} 24. Rg3 {[%emt 0:03:01]} Qf6
{[%emt 0:00:43]} 25. Rxg7+ {[%emt 0:04:24]} Kh8 {[%emt 0:00:36]} 26. Qe2 {
[%emt 0:06:34]} Rg8 {[%emt 0:00:32]} 27. Rxh7+ {[%emt 0:00:29]} Kxh7 {[%emt 0:
00:00]} 28. Qh5+ {[%emt 0:00:19]} 1-0

[Event "44th Chess Olympiad Women 2022"]
[Site "Chennai"]
[Date "2022.08.06"]
[Round "8.51"]
[White "Hwass Zeineb"]
[Black "Mbatha, Constance"]
[Result "0-1"]
[WhiteElo "1386"]
[BlackElo "1614"]
[Annotator "NA RC"]
[PlyCount "124"]
[EventDate "2022.??.??"]
[TimeControl "60"]

1. d4 {[%emt 0:00:02]} d5 {[%emt 0:00:12]} 2. Bf4 {[%emt 0:00:08]} Nf6 {
[%emt 0:00:11]} 3. Nf3 {[%emt 0:00:14]} e6 {[%emt 0:00:04]} 4. e3 {[%emt 0:00:
00]} c5 {[%emt 0:00:18]} 5. c3 {[%emt 0:00:06]} Nc6 {[%emt 0:00:16]} 6. Nbd2 {
[%emt 0:00:24]} Bd7 {[%emt 0:00:17]} 7. Bd3 {[%emt 0:00:25]} c4 {[%emt 0:00:11]
} 8. Bc2 {[%emt 0:00:08]} Be7 {[%emt 0:00:10]} 9. Qe2 {[%emt 0:01:39]} b5 {
[%emt 0:00:41]} 10. e4 {[%emt 0:06:39]} O-O {[%emt 0:00:28]} 11. O-O {[%emt 0:
00:00]} Ne8 {[%emt 0:01:09]} 12. exd5 {[%emt 0:04:26]} exd5 {[%emt 0:00:08]}
13. Ne5 {[%emt 0:03:11]} g6 {[%emt 0:05:16]} 14. Bh6 {[%emt 0:12:46]} Ng7 {
[%emt 0:00:18]} 15. f4 {[%emt 0:00:06]} Re8 {[%emt 0:01:53]} 16. Qf3 {[%emt 0:
00:00]} Nxe5 {[%emt 0:04:08]} 17. fxe5 {[%emt 0:00:15]} Be6 {[%emt 0:01:11]}
18. Qe3 {[%emt 0:07:09]} a5 {[%emt 0:04:48]} 19. Nf3 {[%emt 0:07:32]} b4 {
[%emt 0:06:14]} 20. Ng5 {[%emt 0:08:08]} Qd7 {[%emt 0:03:08]} 21. Qf4 {[%emt 0:
00:00]} Rf8 {[%emt 0:02:04]} 22. Qh4 {[%emt 0:05:59]} Qd8 {[%emt 0:05:31]} 23.
Rf2 {[%emt 0:04:52]} Ra6 {[%emt 0:11:34]} 24. Raf1 {[%emt 0:00:51]} b3 {
[%emt 0:02:04]} 25. axb3 {[%emt 0:01:52]} cxb3 {[%emt 0:00:36]} 26. Bd3 {
[%emt 0:01:02]} Rb6 {[%emt 0:00:48]} 27. g4 {[%emt 0:00:30]} a4 {[%emt 0:02:07]
} 28. Rf6 {[%emt 0:00:59]} Bxg4 {[%emt 0:04:29]} 29. Bxg7 {[%emt 0:03:50]} Bh5
{[%emt 0:00:48]} 30. Rxb6 {[%emt 0:04:05]} Bxg5 {[%emt 0:02:52]} 31. Qh3 {
[%emt 0:02:12]} Kxg7 {[%emt 0:00:05]} 32. Rd6 {[%emt 0:01:45]} Qa8 {[%emt 0:00:
00]} 33. Qg2 {[%emt 0:02:33]} Bh6 {[%emt 0:02:06]} 34. Qxd5 {[%emt 0:01:09]}
Qe8 {[%emt 0:00:57]} 35. Qb7 {[%emt 0:03:41]} Be3+ {[%emt 0:03:25]} 36. Kg2 {
[%emt 0:00:17]} g5 {[%emt 0:01:03]} 37. Bb5 {[%emt 0:01:56]} Qa8 {[%emt 0:00:
00]} 38. Qxa8 {[%emt 0:00:13]} Rxa8 {[%emt 0:00:01]} 39. Ra6 {[%emt 0:01:03]}
Rxa6 {[%emt 0:00:18]} 40. Bxa6 {[%emt 0:00:05]} a3 {[%emt 0:00:11]} 41. bxa3 {
[%emt 0:32:41]} b2 {[%emt 0:30:03]} 42. Bd3 {[%emt 0:00:18]} Bc1 {[%emt 0:00:
00]} 43. Bb1 {[%emt 0:01:18]} Bg6 {[%emt 0:00:54]} 44. Ba2 {[%emt 0:00:06]} Bd2
{[%emt 0:00:28]} 45. c4 {[%emt 0:01:53]} Bc3 {[%emt 0:00:54]} 46. d5 {[%emt 0:
00:00]} Bxe5 {[%emt 0:01:49]} 47. Bb1 {[%emt 0:01:50]} Bh5 {[%emt 0:03:35]} 48.
Rf2 {[%emt 0:00:00]} Bd6 {[%emt 0:00:00]} 49. a4 {[%emt 0:00:00]} Bd1 {[%emt 0:
00:00]} 50. a5 {[%emt 0:00:00]} Bb3 {[%emt 0:00:00]} 51. Bd3 {[%emt 0:00:00]}
Bxc4 {[%emt 0:00:00]} 52. Bb1 {[%emt 0:00:00]} Bxd5+ {[%emt 0:00:00]} 53. Kf1 {
[%emt 0:00:00]} Be5 {[%emt 0:00:00]} 54. Rf5 {[%emt 0:00:00]} f6 {[%emt 0:00:
00]} 55. Ke2 {[%emt 0:00:00]} Bc4+ {[%emt 0:00:00]} 56. Kd2 {[%emt 0:00:00]}
Be6 {[%emt 0:00:00]} 57. a6 {[%emt 0:00:00]} Bxf5 {[%emt 0:00:00]} 58. a7 {
[%emt 0:00:00]} Bxb1 {[%emt 0:00:00]} 59. a8=Q {[%emt 0:00:00]} Bg6 {[%emt 0:
00:00]} 60. Qb7+ {[%emt 0:01:56]} Kh6 {[%emt 0:00:00]} 61. Qb3 {[%emt 0:01:34]}
b1=Q {[%emt 0:00:00]} 62. Qxb1 {[%emt 0:00:05]} Bxb1 {[%emt 0:00:00]} 0-1

[Event "44th Chess Olympiad Women 2022"]
[Site "Chennai"]
[Date "2022.08.06"]
[Round "8.51"]
[White "Likando Namakau"]
[Black "Mefteh, Meyssem"]
[Result "0-1"]
[WhiteElo "1544"]
[BlackElo "1254"]
[Annotator "NA RC"]
[PlyCount "82"]
[EventDate "2022.??.??"]
[TimeControl "60"]

1. e4 {[%emt 0:00:07]} c5 {[%emt 0:00:04]} 2. Nf3 {[%emt 0:00:25]} d6 {[%emt 0:
00:00]} 3. d4 {[%emt 0:02:48]} cxd4 {[%emt 0:00:05]} 4. Nxd4 {[%emt 0:00:45]}
Nf6 {[%emt 0:00:08]} 5. Nc3 {[%emt 0:00:42]} Nc6 {[%emt 0:01:12]} 6. Be2 {
[%emt 0:03:03]} Bd7 {[%emt 0:09:58]} 7. O-O {[%emt 0:01:05]} g6 {[%emt 0:00:11]
} 8. Be3 {[%emt 0:05:30]} Bg7 {[%emt 0:00:40]} 9. Kh1 {[%emt 0:04:58]} O-O {
[%emt 0:01:48]} 10. f4 {[%emt 0:04:42]} Rc8 {[%emt 0:10:59]} 11. Qd2 {[%emt 0:
00:00]} a6 {[%emt 0:09:35]} 12. f5 {[%emt 0:04:54]} Ne5 {[%emt 0:05:03]} 13. h3
{[%emt 0:15:20]} b5 {[%emt 0:13:24]} 14. Bd3 {[%emt 0:02:20]} Nc4 {[%emt 0:00:
00]} 15. Qc1 {[%emt 0:07:38]} Ne5 {[%emt 0:13:15]} 16. a3 {[%emt 0:03:21]} Bc6
{[%emt 0:04:35]} 17. Nxc6 {[%emt 0:02:33]} Rxc6 {[%emt 0:00:53]} 18. Qe1 {
[%emt 0:02:05]} Nc4 {[%emt 0:01:29]} 19. Rb1 {[%emt 0:06:12]} Nd7 {[%emt 0:00:
00]} 20. Nd1 {[%emt 0:06:11]} Nde5 {[%emt 0:04:36]} 21. Qe2 {[%emt 0:02:18]}
Qc7 {[%emt 0:02:17]} 22. c3 {[%emt 0:00:28]} Rd8 {[%emt 0:03:14]} 23. Bd4 {
[%emt 0:01:59]} Nxd3 {[%emt 0:01:25]} 24. Qxd3 {[%emt 0:00:32]} d5 {[%emt 0:00:
00]} 25. Nf2 {[%emt 0:02:28]} dxe4 {[%emt 0:00:33]} 26. Nxe4 {[%emt 0:03:05]}
gxf5 {[%emt 0:01:08]} 27. Qg3 {[%emt 0:01:18]} Qxg3 {[%emt 0:00:22]} 28. Nxg3 {
[%emt 0:00:03]} Nd2 {[%emt 0:00:22]} 29. Nxf5 {[%emt 0:00:12]} Bf8 {[%emt 0:00:
00]} 30. Rf4 {[%emt 0:01:03]} Nxb1 {[%emt 0:00:17]} 31. Rg4+ {[%emt 0:00:39]}
Rg6 {[%emt 0:00:14]} 32. Re4 {[%emt 0:00:35]} Nd2 {[%emt 0:00:20]} 33. Nxe7+ {
[%emt 0:05:11]} Bxe7 {[%emt 0:00:11]} 34. Rxe7 {[%emt 0:00:19]} Nb3 {[%emt 0:
00:00]} 35. Bg1 {[%emt 0:03:08]} Rd1 {[%emt 0:00:36]} 36. Kh2 {[%emt 0:00:15]}
Rd2 {[%emt 0:00:20]} 37. Re8+ {[%emt 0:00:30]} Kg7 {[%emt 0:00:15]} 38. Ba7 {
[%emt 0:02:32]} Rgxg2+ {[%emt 0:00:19]} 39. Kh1 {[%emt 0:00:11]} Rh2+ {[%emt 0:
00:00]} 40. Kg1 {[%emt 0:00:20]} Rdg2+ {[%emt 0:00:02]} 41. Kf1 {[%emt 0:30:10]
} Nd2+ {[%emt 0:30:13]} 0-1

[Event "44th Chess Olympiad Women 2022"]
[Site "Chennai"]
[Date "2022.08.06"]
[Round "8.52"]
[White "Ayele, Hana Mulugeta"]
[Black "Ray, Hiya"]
[Result "0-1"]
[WhiteElo "1437"]
[BlackElo "1586"]
[Annotator "NA RC"]
[PlyCount "108"]
[EventDate "2022.??.??"]
[TimeControl "60"]

1. e4 {[%emt 0:00:05]} c5 {[%emt 0:00:04]} 2. Nf3 {[%emt 0:00:12]} Nc6 {
[%emt 0:00:07]} 3. Bc4 {[%emt 0:00:16]} e6 {[%emt 0:00:15]} 4. Nc3 {[%emt 0:00:
00]} Nf6 {[%emt 0:00:50]} 5. d3 {[%emt 0:01:06]} a6 {[%emt 0:00:57]} 6. a3 {
[%emt 0:00:24]} b5 {[%emt 0:00:37]} 7. Ba2 {[%emt 0:02:23]} Bb7 {[%emt 0:01:26]
} 8. Bg5 {[%emt 0:00:46]} h6 {[%emt 0:01:15]} 9. Bh4 {[%emt 0:01:01]} g5 {
[%emt 0:02:30]} 10. Bg3 {[%emt 0:00:29]} Nh5 {[%emt 0:05:29]} 11. h3 {[%emt 0:
00:00]} Nxg3 {[%emt 0:01:29]} 12. fxg3 {[%emt 0:00:09]} Bd6 {[%emt 0:06:13]}
13. Ne2 {[%emt 0:02:49]} Qc7 {[%emt 0:03:55]} 14. Kf2 {[%emt 0:03:05]} O-O-O {
[%emt 0:03:11]} 15. g4 {[%emt 0:01:30]} Ne5 {[%emt 0:04:15]} 16. c3 {[%emt 0:
00:00]} f5 {[%emt 0:03:26]} 17. Nxe5 {[%emt 0:02:50]} Bxe5 {[%emt 0:00:05]} 18.
gxf5 {[%emt 0:03:29]} exf5 {[%emt 0:00:42]} 19. exf5 {[%emt 0:06:20]} Rdf8 {
[%emt 0:01:19]} 20. Rf1 {[%emt 0:06:06]} Rxf5+ {[%emt 0:00:37]} 21. Ke3 {
[%emt 0:01:59]} Bf4+ {[%emt 0:03:45]} 22. Nxf4 {[%emt 0:02:37]} Rxf4 {[%emt 0:
00:00]} 23. Rg1 {[%emt 0:08:58]} Re8+ {[%emt 0:00:47]} 24. Kd2 {[%emt 0:01:44]}
Rf2+ {[%emt 0:00:05]} 25. Kc1 {[%emt 0:00:21]} Qf4+ {[%emt 0:00:11]} 26. Kb1 {
[%emt 0:01:29]} Ree2 {[%emt 0:00:14]} 27. Qc1 {[%emt 0:02:21]} Qg3 {[%emt 0:00:
00]} 28. Bb3 {[%emt 0:02:47]} Qxd3+ {[%emt 0:01:19]} 29. Ka2 {[%emt 0:01:24]}
Qd2 {[%emt 0:01:57]} 30. Qxd2 {[%emt 0:01:27]} Rxd2 {[%emt 0:00:05]} 31. Rab1 {
[%emt 0:01:10]} c4 {[%emt 0:01:32]} 32. Bd1 {[%emt 0:01:13]} Be4 {[%emt 0:00:
00]} 33. Bf3 {[%emt 0:02:49]} Bxb1+ {[%emt 0:01:17]} 34. Rxb1 {[%emt 0:00:08]}
d5 {[%emt 0:01:12]} 35. a4 {[%emt 0:03:15]} b4 {[%emt 0:03:29]} 36. cxb4 {
[%emt 0:02:23]} c3 {[%emt 0:00:36]} 37. Kb3 {[%emt 0:01:53]} Rxb2+ {[%emt 0:00:
00]} 38. Rxb2 {[%emt 0:01:46]} cxb2 {[%emt 0:00:12]} 39. Ka2 {[%emt 0:00:07]}
Rd2 {[%emt 0:00:29]} 40. Kb1 {[%emt 0:00:28]} Kc7 {[%emt 0:00:44]} 41. g3 {
[%emt 0:32:13]} Kc6 {[%emt 0:31:36]} 42. h4 {[%emt 0:01:29]} Rd4 {[%emt 0:00:
00]} 43. b5+ {[%emt 0:01:18]} axb5 {[%emt 0:00:09]} 44. axb5+ {[%emt 0:00:07]}
Kxb5 {[%emt 0:00:08]} 45. Kxb2 {[%emt 0:00:11]} gxh4 {[%emt 0:01:56]} 46. gxh4
{[%emt 0:00:12]} Rxh4 {[%emt 0:02:24]} 47. Bxd5 {[%emt 0:00:16]} Rd4 {[%emt 0:
00:00]} 48. Bf3 {[%emt 0:00:16]} Kc5 {[%emt 0:01:45]} 49. Kc3 {[%emt 0:00:15]}
Rd6 {[%emt 0:01:12]} 50. Be2 {[%emt 0:00:35]} Kc6 {[%emt 0:00:32]} 51. Bd3 {
[%emt 0:00:38]} h5 {[%emt 0:00:34]} 52. Kd2 {[%emt 0:00:32]} h4 {[%emt 0:00:07]
} 53. Ke3 {[%emt 0:03:39]} Rxd3+ {[%emt 0:00:09]} 54. Kxd3 {[%emt 0:00:04]} h3
{[%emt 0:00:04]} 0-1

[Event "44th Chess Olympiad Women 2022"]
[Site "Chennai"]
[Date "2022.08.06"]
[Round "8.52"]
[White "Bagga, Khushi"]
[Black "Mekonen, Selemawit Kidanemar"]
[Result "0-1"]
[WhiteElo "1328"]
[BlackElo "1263"]
[Annotator "NA RC"]
[PlyCount "24"]
[EventDate "2022.??.??"]
[TimeControl "60"]

1. e4 {[%emt 0:00:01]} c5 {[%emt 0:00:07]} 2. d4 {[%emt 0:00:05]} cxd4 {
[%emt 0:00:45]} 3. Qxd4 {[%emt 0:00:08]} Nc6 {[%emt 0:00:39]} 4. Qd2 {[%emt 0:
00:00]} Nf6 {[%emt 0:01:02]} 5. Nc3 {[%emt 0:00:21]} e6 {[%emt 0:01:34]} 6. Bd3
{[%emt 0:00:18]} d5 {[%emt 0:03:27]} 7. exd5 {[%emt 0:01:06]} exd5 {[%emt 0:00:
00]} 8. Nge2 {[%emt 0:02:14]} Bb4 {[%emt 0:01:36]} 9. a3 {[%emt 0:04:03]} Ba5 {
[%emt 0:01:12]} 10. b4 {[%emt 0:02:53]} Bc7 {[%emt 0:00:12]} 11. O-O {[%emt 0:
00:00]} Qd6 {[%emt 0:00:49]} 12. Nb5 {[%emt 0:05:22]} Qxh2# {[%emt 0:00:31]}
0-1